Workbook

Sheet Calculator
A2: Refinance Calculator (4AH) | J2: Created: | K2: =NOW() -> 2023-08-02T10:14:55.030
A3: Version 10.0 1/8/23
A5: Instructions | I5: Cell Index
A6: Insert the relevant details into blank fields in BLUE cells | J6: Blue shaded cells require input
A7: Show split loan amounts in correct fields | J7: White shaded cells derived from formulas
A8: There must be at least one borrower | J8: Light Grey shaded cells applies appropriate scales
A10: 1. LOAN DETAILS
I11: Security Position
A12: Application Name / Loan No. / Ref: | J12: Value - Owner Occupied Property
J13: Value - Investment Property/ies
A14: Number of Adult Applicants | D14: max 2 | E14: Number of Dependents | H14: max 5 if more type 5 | J14: Total Security Value | K14: =SUM(K12:K13) -> 0 | N14: Adults | Q14: 1 | R14: 2
J15: Loan to Valuation Ratio (LVR) | K15: =IF(ISERROR(C26/K14),0,C26/K14) -> 0 | N15: Dependants | P15: 0 | Q15: 1 | R15: 2 | S15: 3 | T15: 4 | U15: 5
A16: Product | F16: Rate Checker | G16: resimac.co.nz/
N17: Prime
A18: Interest Rate - Actual | F18: Assessment Rate | G18: =IF(C16="",0%,IF(C16="Prime",Tables!B30,IF(C16="Prime Alt Doc",Tables!B32,IF(C16="Specialist",C18+Tables!C31,IF(C16="Prime >80% LVR",Tables!B33,10%))))) -> 0 | N18: Specialist | U18: current calculations
A19: Loan Term (yrs) | C19: Loan Amount | D19: IO Term (yrs) | F19: Estimated Actual Repayment* | U19: PMT | V19: Monthly payments | W19: Max | X19: Total
A20: Portion A | B20: 30 | F20: =-PMT(($C$18/12),((B20-D20)*12),C20,0) -> 0 | H20: *If Interest Only, estimated repayment is after Interest Only period has expired (P&I remaining term) | U20: =IFERROR(-PMT(H22/12,G22,E22,0),"0")*12 -> 0 | V20: =F20*12 -> 0 | W20: =MAX(U20,V20) -> 0 | X20: =V20*B20 -> 0
A21: Portion B | B21: 30 | F21: 0 | U21: =IFERROR(-PMT(H23/12,G23,E23,0),"0")*12 -> 0 | V21: =F21*12 -> 0 | W21: =MAX(U21,V21) -> 0 | X21: =V21*B21 -> 0
A22: Portion C | B22: 30 | F22: 0 | U22: =IFERROR(-PMT(H24/12,G24,E24,0),"0")*12 -> 0 | V22: 0 | W22: 0 | X22: 0
A23: Portion D | B23: 30 | F23: 0 | U23: =IFERROR(-PMT(H25/12,G25,E25,0),"0")*12 -> 0 | V23: 0 | W23: 0 | X23: 0
A24: Portion E | B24: 30 | F24: 0 | G24: =IF(-PMT(($G$18/12),((B24-D24)*12),C24,0),(-PMT(($G$18/12),((B24-D24)*12),C24,0)),"$") -> $ | U24: =IFERROR(-PMT(H26/12,G26,E26,0),"0")*12 -> 0 | V24: 0 | W24: 0 | X24: =SUM(U24*G26/12) -> 0
A25: Portion F | B25: 30 | C25: 0 | F25: 0 | G25: $ | W25: =SUM(W20:W24) -> 0 | X25: =SUM(X20:X24) -> 0
A26: Total | C26: =SUM(C20:C25) -> 0 | F26: =SUM(F20:F25) -> 0 | X26: =SUM(X20:X24) -> 0
A28: 2. INCOME AND EXPENSES | B28: (Use Self Employed and Other Incomes Tab for Other Income Types)
C29: Base Income pa | F29: Self Employed Income | G29: Total allowable Supplementary Income | H29: Apportioned and Scaled Rental Income* | I29: Taxable Income | J29: Tax Applied (Including ACC) | K29: Total Net Borrower Income After Tax
A30: Individual Applicant 1 | F30: ='Self Employed and Other Incomes'!B55 -> 0 | G30: ='Self Employed and Other Incomes'!J9 -> 0 | H30: ='Self Employed and Other Incomes'!J$24 -> 0 | I30: =AUTO_GrossIncome-AUTO_SocialSecurityIncome+F30+G30+H30 -> 0 | J30: =IF(Tables!C$52+Tables!C$53+Tables!C54<0,0,Tables!C$52+Tables!C$53+Tables!C54) -> 0 | K30: =IF(I30-J30<0,0,I30-J30) -> 0
A31: Individual Applicant 2 | F31: ='Self Employed and Other Incomes'!B56 -> 0 | G31: ='Self Employed and Other Incomes'!J10 -> 0 | H31: ='Self Employed and Other Incomes'!K$24 -> 0 | I31: =AUTO_GrossIncome2-AUTO_SocialSecurityIncome2+F31+G31+H31 -> 0 | J31: =IF(Tables!D$52+Tables!D$53+Tables!D54<0,0,Tables!D$52+Tables!D$53+Tables!D54) -> 0 | K31: =IF(I31-J31<0,0,I31-J31) -> 0
A32: Individual Applicant 3 | F32: ='Self Employed and Other Incomes'!B57 -> 0 | G32: ='Self Employed and Other Incomes'!J11 -> 0 | H32: ='Self Employed and Other Incomes'!#REF! ->  | I32: =AUTO_GrossIncome3-AUTO_SocialSecurityIncome3+F32+G32+H32 ->  | J32: =Tables!E$52+Tables!E$53+Tables!E54 ->  | K32: =SUM(I32-J32) -> 
A33: Individual Applicant 4 | F33: ='Self Employed and Other Incomes'!B58 -> 0 | G33: ='Self Employed and Other Incomes'!J12 -> 0 | H33: ='Self Employed and Other Incomes'!#REF! ->  | I33: =AUTO_GrossIncome4-AUTO_SocialSecurityIncome4+F33+G33+H33 ->  | J33: =Tables!F$52+Tables!F$53+Tables!F54 ->  | K33: =SUM(I33-J33) -> 
A34: Totals for Individuals | C34: =SUM(C30:C31) -> 0 | F34: =SUM(F30:F33) -> 0 | G34: =SUM(G30:G33) -> 0 | H34: =SUM(H30:H31) -> 0 | I34: =SUM(I30:I31) -> 0 | J34: =SUM(J30:J31) -> 0 | K34: =SUM(K30:K31) -> 0
H35: =IF(H30<0,0,H30) -> 0 | N35: Weekly
A36: Non Discretionary Monthly Living Expenses | E36: Annualised | G36: Annualised with Buffer | H36: =IF(H31<0,0,H31) -> 0 | N36: Fortnightly
N37: 4 weekly
A38: Applicant Advised Living Expenses | C38: =SUM('Non-Discretionary Expenses'!D27) -> 0 | E38: =SUM(AUTO_TotalDeclaredLivingExpenses*12) -> 0 | G38: ='Non-Discretionary Expenses'!L27*12 -> 0 | N38: Monthly
N39: Quarterly
A40: 3. Proposed / Ongoing Monthly Financial Expenses | E40: Limit / Balance | F40: Estimated Repayment Amount pm | G40: Actual Repayment Amount pm | N40: Annually
A41: Proposed Loan | E41: =C26 -> 0 | F41: =F26 -> 0 | G41: =F41 -> 0 | I41: Net Service Ratio (NSR) | K41: =P62 -> 0
A42: Other Mortgages - Owner Occupied | G42: =AUTO_OtherMortgages -> 0
A43: Other Mortgages - Investment | G43: =AUTO_OtherInvestmentMortgages -> 0 | K43: =IF(K41=0,"Incomplete",IF(K41>1.001,"Pass","Fail")) -> Incomplete
A44: Personal Loans | G44: =AUTO_PersonalLoans -> 0
A45: Credit Cards Limit | G45: =MAX(F45,Tables!B69) -> 0
A46: Student Loan, Other Debts | G46: =F46 -> 0
A48: 4. Existing Monthly Financial Expenses of Loans Being Refinanced ($4$)
H49: Frequency Converter
E50: Original Loan Term (months) | F50: Current Interest Rate | G50: Current Monthly Payments | P50: Annual | U50: current calculations
C51: Original Loan Amount | I51: Amount | J51: Monthly | K51: Annually | U51: PMT | V51: Monthly payments | W51: Max | X51: Total
A52: Existing Loan 1 | H52: Weekly | J52: =I52*52/12 -> 0 | K52: =I52*52 -> 0 | N52: Total Gross Income | P52: =C34+F34+(G34-'Self Employed and Other Incomes'!I13)+'Self Employed and Other Incomes'!B24-'Self Employed and Other Incomes'!C24-'Self Employed and Other Incomes'!D24-'Self Employed and Other Incomes'!E24-'Self Employed and Other Incomes'!F24 -> 0 | U52: =IFERROR(-PMT(F52/12,E52,C52,0),"0")*12 -> 0 | V52: =G52*12 -> 0 | W52: =MAX(U52,V52) -> 0 | X52: =SUM(U52*E52/12) -> 0
A53: Existing Loan 2 | H53: Fortnightly | J53: =I53*26/12 -> 0 | K53: =I53*26 -> 0 | N53: Tax Applicable | P53: =J34 -> 0 | U53: =IFERROR(-PMT(F53/12,E53,C53,0),"0")*12 -> 0 | V53: =G53*12 -> 0 | W53: =MAX(U53,V53) -> 0 | X53: =SUM(U53*E53/12) -> 0
A54: Existing Loan 3 | H54: 4 weekly | J54: =I54*13/12 -> 0 | K54: =I54*13 -> 0 | N54: Net Cash after Tax* | P54: =P52-P53 -> 0 | U54: 0 | V54: 0 | W54: 0 | X54: 0
A55: Existing Loan 4 | H55: Monthly | K55: =I55*12 -> 0 | N55: Government Benefits / Tax Free | P55: ='Self Employed and Other Incomes'!I13 -> 0 | U55: 0 | V55: 0 | W55: 0 | X55: 0
A56: Existing Loan 5 | H56: Quarterly | J56: =I56*4/12 -> 0 | K56: =I56*4 -> 0 | N56: Boarder Income | P56: ='Self Employed and Other Incomes'!B15*52 -> 0 | U56: 0 | V56: 0 | W56: 0 | X56: 0
A57: Total | C57: =SUM(C52:C56) -> 0 | G57: =SUM(U52:U56)*12 -> 0 | H57: Annually | J57: =I57/12 -> 0 | N57: Living Expenses (as per scales) | P57: =IF(AUTO_NumberAdults=""," 0",IF('Non-Discretionary Expenses'!D27=0," 0",MAX('Non-Discretionary Expenses'!D29,'Non-Discretionary Expenses'!P34))) -> 0 | W57: =SUM(W52:W56) -> 0 | X57: =SUM(X52:X56) -> 0
N58: Net Disposable Income | P58: =SUM(P54+P55+P56)-P57 -> 0 | Q58: =SUM(P58+P60) -> 0
A59: Payments | N59: Total Financial Expense | P59: =(G41+G42+G43+G44+G45+G46)*12 -> 0
A60: Existing | C60: =W57 -> 0 | E60: =IF(C61=0,"Incomplete",IF(C61<=C60,"Pass- new payment = or < existing","Fail- not suitable for 4AH")) -> Incomplete
A61: Proposed | C61: =G41*12 -> 0 | N61: Surplus Cash after Financial Expense | P61: =SUM(P58-P59+P60) -> 0 | R61: Minimum: Surplus (+)
N62: Net Service Ratio (NSR) | P62: =IF(ISERROR(Q58/P59),0,(Q58/P59)) -> 0
A63: Overall Cost Calculation
A64: Existing | C64: =X57 -> 0 | E64: =IF(C61=0,"Incomplete",IF(C65>=C64,"Customers to confirm they are aware overall payments are higher and they accept","Overall cost is less than existing")) -> Incomplete | J64: DTI
A65: Proposed | C65: =X26 -> 0 | J65: =Tables!H31 -> 0
A66: 4. COMMENTS
K93: 1

Sheet Non-Discretionary Expenses
A1: LIVING EXPENSES
H2: ******Hidden Cells***** for Underwriter use*****
B3: MONTHLY NON DISCRETIONARY LIVING EXPENSES | J3: Additional Enquiry (enter all fields if change is made to any)
B4: all catergories must be answered. Mark as n/a where not applicable
D5: Customer Estimated | F5: Notes | H5: Customer Estimated | L5: Buffered | N5: Benchmark | P5: Buffered Benchmark | R5: Adjusted why? verified how? With what document? Must be answered where customer declares an non benchmarkable expense or if deemed immaterial
B6: Utilities | H6: =D6 -> 0 | L6: =MAX(D6:J6)*1.1 -> 0
A7: . | B7: Rates | H7: 0 | L7: =MAX(D7:J7)*1.1 -> 0 | Q7: Rates
B8: Property Maintenance | H8: 0 | L8: 0
B9: Food & Takeaways | H9: 0 | L9: 0
B10: Transport | H10: 0 | L10: 0
B11: Clothing and Footwear | H11: 0 | L11: 0
B12: Personal Care | H12: 0 | L12: 0
B13: Childcare | H13: 0 | L13: 0
A14: . | B14: Insurances | F14: Supporting document: | H14: 0 | L14: 0 | Q14: Insurance
B15: Communications | H15: 0 | L15: 0
B16: Medical and Health | H16: 0 | L16: 0
B17: Education and Schooling | F17: Supporting document: | H17: 0 | L17: 0 | Q17: Edu & Sch
B18: Recreation and Entertainment | H18: 0 | L18: 0
B19: Regular Savings | H19: 0 | L19: 0
A20: . | B20: Body Corp Fees | F20: Supporting document: | H20: 0 | L20: 0 | Q20: BC fees
B21: Tithings | F21: Supporting document: | H21: 0 | L21: 0 | Q21: Tithing
A22: . | B22: Child Maintenance | F22: Supporting document: | H22: 0 | L22: 0 | Q22: Child Maint
A23: . | B23: All Other Regular Expenses | F23: Supporting document: | H23: 0 | L23: 0 | Q23: Other
A25: . | B25: Rent or Board Paid | F25: Supporting document: | H25: =D25 -> 0 | L25: =MAX(D25:J25) -> 0 | Q25: Rent/Board
B27: Total Monthly Expenses | D27: =SUM(D6:D25) -> 0 | H27: =SUM(H6:H25) -> 0 | J27: =SUM(J6:J25) -> 0 | L27: =SUM(L6:L25) -> 0
B29: Annualised | D29: =SUM(D27*12) -> 0 | G29: Annualised
B30: Benckmark Items Total | D30: =SUM(D6+D8+D9+D10+D11+D12+D13+D15+D17)*12 -> 0 | G30: Benchmarked expense type | J30: =SUM(J6+J8+J9+J10+J11+J12+J13+J15+J16+J18)*12 -> 0 | L30: =SUM(L6+L8+L9+L10+L11+L12+L13+L15+L16+L18)*12 -> 0 | N30: =Tables!B25 -> 11984.38557 | P30: =Tables!B25 -> 11984.38557
B31: Non Benchmark Total | G31: Not Benchmarked expense type | J31: =SUM(J7+J14+J17+J19+J20+J21+J22+J23+J25)*12 -> 0 | L31: =SUM(L7+L14+L17+L19+L20+L21+L22+L23+L25)*12 -> 0 | P31: =SUM(L31) -> 0
D32: =SUM(D7+D14+D16+D18+D19+D20+D21+D22+D23+D25)*12 -> 0
G34: Total | H34: =SUM(H27*12) -> 0 | J34: =SUM(J30+J31) -> 0 | L34: =SUM(L30+L31) -> 0 | P34: =P30+P31 -> 11984.38557
J43: =MAX(L37,L34) -> 0

Sheet Self Employed and Other Incomes
A1: SELF EMPLOYED + OTHER INCOME WORKSHEET
A3: Note: All figures are to be entered at 100% and calculator will reduce assessment percentage where appropriate
A5: 2. INCOME AND EXPENSES
A7: Additional Incomes
B8: Base Income | C8: Overtime / Shift Allowance pa | D8: Bonus pa | E8: Commission pa | F8: Investment Income pa | G8: Casual / Second Job pa | H8: Child Support/ Maintenance pa* | I8: Working For Families, Company Car Addback pa | J8: Total allowable Supplementary Income
A9: Individual Applicant 1 | B9: =AUTO_GrossIncome -> 0 | J9: =SUM(C9*Tables!$A$59,D9*Tables!$B$59,E9*Tables!$C$59,F9*Tables!$D$59,G9*Tables!$E$59,H9*Tables!$F$59,I9*Tables!$G$59) -> 0
A10: Individual Applicant 2 | B10: =AUTO_GrossIncome2 -> 0 | J10: =SUM(C10*Tables!$A$59,D10*Tables!$B$59,E10*Tables!$C$59,F10*Tables!$D$59,G10*Tables!$E$59,H10*Tables!$F$59,I10*Tables!$G$59) -> 0
A11: Individual Applicant 3 | B11: =AUTO_GrossIncome3 -> 0 | J11: =SUM(C11*Tables!$A$59,D11*Tables!$B$59,E11*Tables!$C$59,F11*Tables!$D$59,G11*Tables!$E$59,H11*Tables!$F$59,I11*Tables!$G$59) -> 0
A12: Individual Applicant 4 | B12: =AUTO_GrossIncome4 -> 0 | J12: =SUM(C12*Tables!$A$59,D12*Tables!$B$59,E12*Tables!$C$59,F12*Tables!$D$59,G12*Tables!$E$59,H12*Tables!$F$59,I12*Tables!$G$59) -> 0
A13: Totals for Individuals | B13: =Calculator!C34 -> 0 | C13: =SUM(C9:C12) -> 0 | D13: 0 | E13: 0 | F13: 0 | G13: 0 | H13: 0 | I13: 0 | J13: 0
A15: Boarder Income p.w | C15: *must be existing and evidenced continuously over last 90 days | H15: *max age 13 must be through IRD
A17: Taxable Rental Income | H17: Applicant Ownership%/Tax Split % =100% | J17: Taxable Rental Income Split Per Applicant
A18: Address | B18: Gross Rental Income pa | C18: Rates pa | D18: Insurances pa | E18: Body Corp pa | F18: Regular Maintenance pa | G18: Lending against security that is tax deductable | H18: 1 | I18: 2 | J18: TaxaTaxable profit/ loss
J19: =Tables!E75-Tables!I75 -> 0 | K19: =Tables!F75-Tables!J75 -> 0
J20: =Tables!E76-Tables!I76 -> 0 | K20: =Tables!F76-Tables!J76 -> 0
J21: =Tables!E77-Tables!I77 -> 0 | K21: =Tables!F77-Tables!J77 -> 0
J22: =Tables!E78-Tables!I78 -> 0 | K22: =Tables!F78-Tables!J78 -> 0
J23: =Tables!E79-Tables!I79 -> 0 | K23: =Tables!F79-Tables!J79 -> 0
B24: =SUM(B19:B23) -> 0 | C24: 0 | D24: 0 | E24: 0 | F24: 0 | G24: =SUM(G19:G23) -> 0 | J24: =SUM(J19:J23) -> 0 | K24: =SUM(K19:K23) -> 0 | L24: * | AE24: *
A26: If interest exempt max term | B26: New Build | C26: CCC issued | D26: Max deductable term (yrs) | I26: * Automatically added to Calculator worksheet and scaled 80%
D27: =IF(C27="","",IF(C27>Tables!F63,Tables!D75,"not valid CCC outside range")) ->  | F27: *if no deductability is being claimed (G17-G21)max term 30 years
A29: Self Employed
A31: Most Recent Year
A32: Financial Year End dd/mm/yyyy
B34: Net Profit Before Tax | C34: Shareholder Salary* | D34: Director Fees* | E34: Wages / Salary* | F34: Home Office | G34: One off / Significant Item | H34: Interest** | I34: Depreciation*** | J34: % Depn Addback | L34: Total Income
A35: Individual Applicant 1 | J35: =IF(I35<Tables!D98,I35,Tables!D98) -> 0 | L35: =SUM(B35,C35,D35,E35,F35,G35,H35,J35) -> 0
A36: Individual Applicant 2 | J36: =IF(I36<Tables!D99,I36,Tables!D99) -> 0 | L36: =SUM(B36,C36,D36,E36,F36,G36,H36,J36) -> 0
A37: Individual Applicant 3 | J37: =IF(I37<Tables!D100,I37,Tables!D100) -> 0 | L37: =SUM(B37,C37,D37,E37,F37,G37,H37,J37) -> 0
A38: Individual Applicant 4 | J38: =IF(I38<Tables!D101,I38,Tables!D101) -> 0 | L38: =SUM(B38,C38,D38,E38,F38,G38,H38,J38) -> 0
E40: *paid to applicants | H40: **Where being refinanced or repaid | I40: ***not all asset depreciation is suitable for addback i.e core business assets -taxi drivers vehicle
A43: Year Prior
A44: Financial Year End dd/mm/yyyy
B46: Net Profit Before Tax | C46: Shareholder Salary* | D46: Director Fees* | E46: Wages / Salary* | F46: Home Office | G46: One off / Significant Item | H46: Interest** | I46: Depreciation*** | J46: % Depn Addback | L46: Total Income
A47: Individual Applicant 1 | J47: =IF(I47<Tables!D104,I47,Tables!D104) -> 0 | L47: =SUM(B47,C47,D47,E47,F47,G47,H47,J47) -> 0
A48: Individual Applicant 2 | J48: =IF(I48<Tables!D105,I48,Tables!D105) -> 0 | L48: =SUM(B48,C48,D48,E48,F48,G48,H48,J48) -> 0
A49: Individual Applicant 3 | J49: =IF(I49<Tables!D106,I49,Tables!D106) -> 0 | L49: =SUM(B49,C49,D49,E49,F49,G49,H49,J49) -> 0
A50: Individual Applicant 4 | J50: =IF(I50<Tables!D107,I50,Tables!D107) -> 0 | L50: =SUM(B50,C50,D50,E50,F50,G50,H50,J50) -> 0
A53: Income used in servicing for Self Employed Applicants
A55: Individual Applicant 1 | B55: =IF(Tables!F104<L35,Tables!F104,L35) -> 0 | C55: * | D55: * Auto added to calculator worksheet
A56: Individual Applicant 2 | B56: =IF(Tables!F105<L36,Tables!F105,L36) -> 0 | C56: *
A57: Individual Applicant 3 | B57: =IF(Tables!E106<L37,Tables!E106,L37) -> 0 | C57: *
A58: Individual Applicant 4 | B58: =IF(Tables!E107<L38,Tables!E107,L38) -> 0 | C58: *
A61: Age Check of Financials | B61: =IF(B32="","",IF(Tables!C83>270,"Interims or more up-to-date financials required","Age of financials acceptable")) -> 

Sheet Tables (hidden)
A2: Living Expenses (Annual) | E2: 10 | F2: 11 | G2: 12 | H2: 13 | I2: 14 | J2: 15 | K2: 20 | L2: 21 | M2: 22 | N2: 23 | O2: 24 | P2: 25
D3: Adults | E3: 1 | F3: 1 | G3: 1 | H3: 1 | I3: 1 | J3: 1 | K3: 2 | L3: 2 | M3: 2 | N3: 2 | O3: 2 | P3: 2
A4: Year | B4: Pre-tax monthly income | C4: annualised | D4: Dependants | E4: 0 | F4: 1 | G4: 2 | H4: 3 | I4: 4 | J4: 5 | K4: 0 | L4: 1 | M4: 2 | N4: 3 | O4: 4 | P4: 5
A5: 2022 | B5: 1000 | C5: =SUM(B5*12) -> 12000 | E5: 566.6487639 | F5: 834.2751013 | G5: 1083.645678 | H5: 1320.70305 | I5: 1548.570395 | J5: 1769.161308 | K5: 998.6987975 | L5: 1239.584714 | M5: 1470.380937 | N5: 1693.32727 | O5: 1909.887931 | P5: 2121.090501
A6: 2022 | B6: 2000 | C6: =SUM(B6*12) -> 24000 | E6: 709.5774456 | F6: 1044.708527 | G6: 1356.979104 | H6: 1653.830655 | I6: 1939.174133 | J6: 2215.405807 | K6: 1250.605643 | L6: 1552.251432 | M6: 1841.262553 | N6: 2120.443766 | O6: 2391.628617 | P6: 2656.103879
A7: 2022 | B7: 3000 | C7: 36000 | E7: 809.361172 | F7: 1191.619777 | G7: 1547.80314 | H7: 1886.399188 | I7: 2211.868851 | J7: 2526.945369 | K7: 1426.471001 | L7: 1770.535473 | M7: 2100.188537 | N7: 2418.629372 | O7: 2727.949363 | P7: 3029.616234
A8: 2022 | B8: 4000 | C8: 48000 | E8: 888.5577511 | F8: 1308.220639 | G8: 1699.256802 | H8: 2070.98472 | I8: 2428.301825 | J8: 2774.208811 | K8: 1566.052225 | L8: 1943.783656 | M8: 2305.693513 | N8: 2655.294014 | O8: 2994.881192 | P8: 3326.066384
A9: 2022 | B9: 5000 | C9: 60000 | E9: 955.2861505 | F9: 1406.464641 | G9: 1826.866613 | H9: 2226.510341 | I9: 2610.661041 | J9: 2982.54475 | K9: 1683.658715 | L9: 2089.756804 | M9: 2478.845159 | N9: 2854.699758 | O9: 3219.789058 | P9: 3575.845407
A10: 2022 | B10: 6000 | C10: 72000 | E10: 1013.510431 | F10: 1492.188056 | G10: 1938.213349 | H10: 2362.21519 | I10: 2769.77971 | J10: 3164.329572 | K10: 1786.276991 | L10: 2217.126584 | M10: 2629.929707 | N10: 3028.692483 | O10: 3416.033819 | P10: 3793.791649
A11: 2022 | B11: 7000 | C11: 84000 | E11: 1065.498437 | F11: 1568.729826 | G11: 2037.633981 | H11: 2483.384991 | I11: 2911.855529 | J11: 3326.643822 | K11: 1877.904049 | L11: 2330.854068 | M11: 2764.831922 | N11: 3184.04923 | O11: 3591.259235 | P11: 3988.394149
A12: 2022 | B12: 8000 | C12: 96000 | E12: 1112.683164 | F12: 1638.199742 | G12: 2127.868934 | H12: 2593.359663 | I12: 3040.804668 | J12: 3473.961521 | K12: 1961.065493 | L12: 2434.074032 | M12: 2887.270241 | N12: 3325.052244 | O12: 3750.295211 | P12: 4165.016919
A13: 2022 | B13: 9000 | C13: 108000 | E13: 1156.034476 | F13: 1702.025736 | G13: 2210.772957 | H13: 2694.399697 | I13: 3159.277632 | J13: 3609.310734 | K13: 2037.470678 | L13: 2528.90813 | M13: 2999.761341 | N13: 3454.599794 | O13: 3896.410677 | P13: 4327.290381
A14: 2022 | B14: 10000 | C14: 120000 | E14: 1196.242804 | F14: 1761.224325 | G14: 2287.666413 | H14: 2788.114297 | I14: 3269.16127 | J14: 3734.847087 | K14: 2108.336463 | L14: 2616.866725 | M14: 3104.096802 | N14: 3574.755107 | O14: 4031.932726 | P14: 4477.798967
A15: 2022 | B15: 12500 | C15: 150000 | E15: 1286.077559 | F15: 1893.487738 | G15: 2459.46427 | H15: 2997.494503 | I15: 3514.666865 | J15: 4015.324488 | K15: 2266.667103 | L15: 2813.386679 | M15: 3337.20648 | N15: 3843.210012 | O15: 4334.720493 | P15: 4814.070141
A16: 2022 | B16: 15000 | C16: 180000 | E16: 1364.463434 | F16: 2008.895002 | G16: 2609.367561 | H16: 3180.190505 | I16: 3728.884301 | J16: 4260.056791 | K16: 2404.819489 | L16: 2984.861389 | M16: 3540.607782 | N16: 4077.452012 | O16: 4598.919846 | P16: 5107.485648
A17: 2022 | B17: 20000 | C17: 240000 | E17: 1497.977173 | F17: 2205.466839 | G17: 2864.696074 | H17: 3491.374458 | I17: 4093.75834 | J17: 4676.906445 | K17: 2640.132825 | L17: 3276.932246 | M17: 3887.058828 | N17: 4476.433655 | O17: 5048.927496 | P17: 5607.256832
A18: 2022 | B18: 25000 | C18: 300000 | E18: 1610.471402 | F18: 2371.09172 | G18: 3079.827374 | H18: 3753.567691 | I18: 4401.189052 | J18: 5028.130077 | K18: 2838.400002 | L18: 3523.021421 | M18: 4178.966938 | N18: 4812.602298 | O18: 5428.088952 | P18: 6028.347384
A19: 2022 | B19: 1000000 | C19: =SUM(B19*12) -> 12000000 | E19: =E18*1.05 -> 1690.994972 | F19: =F18*1.05 -> 2489.646306 | G19: 3233.818743 | H19: 3941.246076 | I19: 4621.248504 | J19: 5279.536581 | K19: 2980.320003 | L19: 3699.172492 | M19: 4387.915285 | N19: 5053.232413 | O19: 5699.4934 | P19: 6329.764753
A21: Adults | B21: =AUTO_NumberAdults -> 0 | C21: =IF(B21=1,"10","20") -> 20 | D21: Gross income | E21: =SUM('Self Employed and Other Incomes'!B13+'Self Employed and Other Incomes'!C13+'Self Employed and Other Incomes'!D13+'Self Employed and Other Incomes'!E13+'Self Employed and Other Incomes'!G13+'Self Employed and Other Incomes'!H13+'Self Employed and Other Incomes'!I13)/12 -> 0
A22: Dependants | B22: =AUTO_NumberChildren -> 0 | C22: =B22 -> 0 | D22: Roundup 000's | E22: =ROUNDUP(E21,-3) -> 0 | M22: Adults | O22: 1 | P22: 2
C23: =SUM(C21+C22) -> 20 | M23: Dependants | N23: 0 | O23: 1 | P23: 2 | Q23: 3 | R23: 4 | S23: 5
A24: Income banded expense | B24: =_xlfn.XLOOKUP(C23,E2:P2,_xlfn.XLOOKUP(E22,B5:B19,E5:P19,,1)) -> 998.6987975
A25: annualised | B25: =SUM(B24*12) -> 11984.38557
A28: Benchmark Servicing Interest Rates | E28: KS % | H28: DTI
B29: Floor | C29: Loading | G29: Gross Income | H29: =Calculator!C34+Calculator!F34+'Self Employed and Other Incomes'!C13+'Self Employed and Other Incomes'!D13+'Self Employed and Other Incomes'!E13+'Self Employed and Other Incomes'!F13+'Self Employed and Other Incomes'!G13+'Self Employed and Other Incomes'!H13+'Self Employed and Other Incomes'!I13+'Self Employed and Other Incomes'!B15+'Self Employed and Other Incomes'!B24 -> 0
A30: Prime | B30: 0.09 | E30: 0.03 | G30: Total Debts | H30: =AUTO_ExistingOwnerOccupiedLoans+AUTO_ExistingInvestmentLoans+Calculator!E43+Calculator!E44+AUTO_CreditCardLimit+Calculator!E46 -> 0
A31: Specialist | B31: 0 | C31: 0.0175 | E31: 0.04 | G31: DTI | H31: =IF(ISERROR(H30/H29),0,(H30/H29)) -> 0
A32: Prime Alt Doc | B32: 0.095 | E32: 0.06
A33: Prime >80% LVR | B33: 0.1 | E33: 0.08
E34: 0.1
B36: Tax Rates effective 01/04/2021
B37: Tax Boundary | C37: Tax Due | D37: Excess %
B38: 0 | C38: 0 | D38: 0.105
B39: 14000 | C39: =C38+D38*(B39-B38) -> 1470 | D39: 0.175
B40: 48000 | C40: =C39+D39*(B40-B39) -> 7420 | D40: 0.3
B41: 70000 | C41: =C40+D40*(B41-B40) -> 14020 | D41: 0.33
B42: 180000 | C42: =C41+D41*(B42-B41) -> 50320 | D42: 0.39
C45: Applicant 1 | D45: Applicant 2 | E45: Applicant 3 | F45: Applicant 4
B46: ANNUAL INCOME: | C46: =Calculator!$I30 -> 0 | D46: =Calculator!$I31 -> 0 | E46: =Calculator!$I32 ->  | F46: =Calculator!$I33 -> 
B48: Tax Boundary | C48: =VLOOKUP(C46,$B$38:$D$43,1) -> 0 | D48: =VLOOKUP(D46,$B$38:$D$42,1) -> 0 | E48: =VLOOKUP(E46,Calculator!$B$39:$D$43,1) ->  | F48: =VLOOKUP(F46,$B$38:$D$42,1) -> 
B49: Tax Due on Boundary | C49: =VLOOKUP(C46,$B$38:$D$43,2) -> 0 | D49: =VLOOKUP(D46,$B$38:$D$42,2) -> 0 | E49: =VLOOKUP(E46,$B$38:$D$42,2) ->  | F49: =VLOOKUP(F46,$B$38:$D$42,2) -> 
B50: % Due on Excess | C50: =VLOOKUP(C46,$B$38:$D$43,3) -> 0.105 | D50: =VLOOKUP(D46,$B$38:$D$42,3) -> 0.105 | E50: =VLOOKUP(E46,$B$38:$D$42,3) ->  | F50: =VLOOKUP(F46,$B$38:$D$42,3) -> 
B52: Tax due on Income: | C52: =IF(C46>0,C49+(C46-C48)*C50,0) -> 0 | D52: =IF(D46>0,D49+(D46-D48)*D50,0) -> 0 | E52: =IF(E46>0,E49+(E46-E48)*E50,0) ->  | F52: =IF(F46>0,F49+(F46-F48)*F50,0) -> 
B53: KS** | C53: =SUM(C46*Calculator!D30) -> 0 | D53: =SUM(D46*Calculator!D31) -> 0 | E53: =SUM(E46*Calculator!D32) ->  | F53: =SUM(F46*Calculator!D33) ->  | G53: ** % as selected caluclator page
B54: ACC* | C54: =+IF(C46>139384,2132.57,C46*0.0153) -> 0 | D54: =+IF(D46>139384,2132.57,D46*0.0153) -> 0 | F54: =+IF(F46>130911,1819.66,F46*0.0139) ->  | G54: *ACC tops out at 2132.57 for income over 139384
B55: NET INCOME (per annum): | C55: =C46-C52-C53-C54 -> 0 | D55: =D46-D52-D53-D54 -> 0 | E55: =E46-E52-E53-E54 ->  | F55: =F46-F52-F53-F54 -> 
A57: % Scaling applied to income types
A58: Overtime / Shift Allowance | B58: Bonus | C58: Commission | D58: Investment Income | E58: Casual / Second Job | F58: Child Support/ Maintenance | G58: Working For Families, Company Car Addback | H58: Rental Incomes
A59: 1 | B59: 1 | C59: 1 | D59: 1 | E59: 1 | F59: 1 | G59: 1 | H59: 1
A61: Other mortgage lending default term calculation
A62: =MAX(Calculator!B20:B25) -> 30 | F62: New Build date (counted)
F63: 2020-03-27
B66: calculated benchmark | C66: Advised | D66: max term remain amort tax deduct
A67: O/O | B67: =-PMT((Calculator!C18/12),Tables!B71*12,Calculator!E42,0) -> 0 | C67: =AUTO_OtherMortgages -> 0 | F67: Interest Exempt
A68: Investment | B68: =-PMT((Calculator!C18/12),Tables!B71*12,Calculator!E43,0) -> 0 | C68: =AUTO_OtherInvestmentMortgages -> 0 | D68: =Tables!C92 -> 0 | F68: yes | G68: no
A69: Credit Card | B69: =SUM(Calculator!E45*0.038) -> 0 | C69: =AUTO_OtherExpenses -> 0
A71: Max term Other debts | B71: =MAX(Calculator!B20:B25) -> 30
A73: Rent Split and scale | E73: Applicants
A74: Gross | B74: scaled | C74: CCC + 20y | D74: term remaining | E74: split1 | F74: split2 | I74: Tax deduct 1 | J74: Tax deduct 2
A75: =SUM(-'Self Employed and Other Incomes'!C19:F19)+('Self Employed and Other Incomes'!B19) -> 0 | B75: =SUM(A75*$H$59) -> 0 | C75: =EDATE('Self Employed and Other Incomes'!C27,240) -> 1919-12-31 | D75: =SUM(C75-$B$83)/365 -> -103.6575342 | E75: =SUM($B$75*'Self Employed and Other Incomes'!H19) -> 0 | F75: =SUM($B$75*'Self Employed and Other Incomes'!I19) -> 0 | I75: =-IPMT(AUTO_LoanInterestRate,1,20,'Self Employed and Other Incomes'!G19)*'Self Employed and Other Incomes'!H19 -> 0 | J75: =-IPMT(AUTO_LoanInterestRate,1,20,'Self Employed and Other Incomes'!G19)*'Self Employed and Other Incomes'!I19 -> 0
A76: =SUM(-'Self Employed and Other Incomes'!C20:F20)+('Self Employed and Other Incomes'!B20) -> 0 | B76: =SUM(A76*$H$59) -> 0 | C76: =EDATE('Self Employed and Other Incomes'!#REF!,240) ->  | D76: =SUM(C76-$B$83)/365 ->  | E76: =SUM($B$76*'Self Employed and Other Incomes'!H20) -> 0 | F76: =SUM($B$76*'Self Employed and Other Incomes'!I20) -> 0 | I76: =-IPMT(AUTO_LoanInterestRate,1,20,'Self Employed and Other Incomes'!G20)*'Self Employed and Other Incomes'!H20 -> 0 | J76: =-IPMT(AUTO_LoanInterestRate,1,20,'Self Employed and Other Incomes'!G20)*'Self Employed and Other Incomes'!I20 -> 0
A77: =SUM(-'Self Employed and Other Incomes'!C21:F21)+('Self Employed and Other Incomes'!B21) -> 0 | B77: 0 | C77: =EDATE('Self Employed and Other Incomes'!#REF!,240) ->  | D77: =SUM(C77-$B$83)/365 ->  | E77: =SUM($B$77*'Self Employed and Other Incomes'!H21) -> 0 | F77: =SUM($B$77*'Self Employed and Other Incomes'!I21) -> 0 | I77: =-IPMT(AUTO_LoanInterestRate,1,20,'Self Employed and Other Incomes'!G21)*'Self Employed and Other Incomes'!H21 -> 0 | J77: =-IPMT(AUTO_LoanInterestRate,1,20,'Self Employed and Other Incomes'!G21)*'Self Employed and Other Incomes'!I21 -> 0
A78: =SUM(-'Self Employed and Other Incomes'!C22:F22)+('Self Employed and Other Incomes'!B22) -> 0 | B78: 0 | C78: =EDATE('Self Employed and Other Incomes'!#REF!,240) ->  | D78: =SUM(C78-$B$83)/365 ->  | E78: =SUM($B$78*'Self Employed and Other Incomes'!H22) -> 0 | F78: =SUM($B$78*'Self Employed and Other Incomes'!I22) -> 0 | I78: =-IPMT(AUTO_LoanInterestRate,1,20,'Self Employed and Other Incomes'!G22)*'Self Employed and Other Incomes'!H22 -> 0 | J78: =-IPMT(AUTO_LoanInterestRate,1,20,'Self Employed and Other Incomes'!G22)*'Self Employed and Other Incomes'!I22 -> 0
A79: =SUM(-'Self Employed and Other Incomes'!C23:F23)+('Self Employed and Other Incomes'!B23) -> 0 | B79: 0 | C79: =EDATE('Self Employed and Other Incomes'!#REF!,240) ->  | D79: =SUM(C79-$B$83)/365 ->  | E79: =SUM($B$79*'Self Employed and Other Incomes'!H23) -> 0 | F79: =SUM($B$79*'Self Employed and Other Incomes'!I23) -> 0 | I79: =-IPMT(AUTO_LoanInterestRate,1,20,'Self Employed and Other Incomes'!G23)*'Self Employed and Other Incomes'!H23 -> 0 | J79: =-IPMT(AUTO_LoanInterestRate,1,20,'Self Employed and Other Incomes'!G23)*'Self Employed and Other Incomes'!I23 -> 0
I80: =SUM(I75:I79) -> 0 | J80: =SUM(J75:J79) -> 0
B82: Today | C82: Financials <=> 270 days
A83: Date | B83: =TODAY() -> 2023-08-02 | C83: =DATEDIF('Self Employed and Other Incomes'!B32,B83,"d") -> 45140
C96: Self Employed Assessment
B97: Current Year | C97: Total income less Depreciation | D97: Max Depreciation that can be used
B98: Applicant1 | C98: =SUM('Self Employed and Other Incomes'!B35:H35) -> 0 | D98: =MIN(C98*20%,'Self Employed and Other Incomes'!I35) -> 0
B99: Applicant 2 | C99: =SUM('Self Employed and Other Incomes'!B36:H36) -> 0 | D99: =MIN(C99*20%,'Self Employed and Other Incomes'!I36) -> 0
B100: Applicant 3 | C100: =SUM('Self Employed and Other Incomes'!B37:H37) -> 0 | D100: =SUM(C100*20%) -> 0
B101: Applicant 4 | C101: =SUM('Self Employed and Other Incomes'!B38:H38) -> 0 | D101: 0
B103: Prior Year | F103: 120% Rule
B104: Applicant1 | C104: =SUM('Self Employed and Other Incomes'!B47:H47) -> 0 | D104: =MIN(C104*20%,'Self Employed and Other Incomes'!I47) -> 0 | E104: ='Self Employed and Other Incomes'!L47 -> 0 | F104: =E104*120% -> 0
B105: Applicant 2 | C105: =SUM('Self Employed and Other Incomes'!B48:H48) -> 0 | D105: =MIN(C105*20%,'Self Employed and Other Incomes'!I48) -> 0 | E105: ='Self Employed and Other Incomes'!L48 -> 0 | F105: =E105*120% -> 0
B106: Applicant 3 | C106: =SUM('Self Employed and Other Incomes'!B49:H49) -> 0 | D106: 0 | E106: ='Self Employed and Other Incomes'!L49 -> 0 | F106: 0
B107: Applicant 4 | C107: =SUM('Self Employed and Other Incomes'!B50:H50) -> 0 | D107: 0 | E107: ='Self Employed and Other Incomes'!L50 -> 0 | F107: 0
